bitfinex/quotes_BTCUSD_20250802
["timestamp","ask_amount","ask_price","bid_price","bid_amount"]
[1754143269061,0.01476647,113740.0,113730.0,0.74817174]
[1754143269749,0.01476647,113740.0,113730.0,0.42274735]
[1754143269980,0.01376647,113740.0,113730.0,0.42274735]
[1754143270205,0.01376647,113740.0,113730.0,0.74917174]
[1754143270659,0.01376647,113740.0,113730.0,0.77561574]
[1754143271142,0.01376647,113740.0,113730.0,0.12476696]
[1754143271399,0.01376647,113740.0,113730.0,0.7349618]
[1754143284859,0.01376647,113740.0,113730.0,0.73493402]
[1754143293692,0.01376647,113740.0,113730.0,0.08411302]
[1754143294206,0.01376647,113740.0,113730.0,0.73493402]
[1754143297218,0.01376647,113740.0,113730.0,0.37230352]
[1754143297608,4.64632397,113740.0,113730.0,0.003]
[1754143298539,0.68507697,113740.0,113730.0,0.003]
[1754143298796,4.64632397,113740.0,113720.0,0.3254105]
[1754143299073,3.961247,113730.0,113710.0,0.38702024]
[1754143299329,3.961247,113730.0,113720.0,0.3573823]
[1754143299581,3.961247,113730.0,113720.0,0.3605223]
[1754143301360,3.961247,113730.0,113720.0,0.3635223]
[1754143302308,3.961247,113730.0,113720.0,0.03994]
[1754143302749,3.961247,113730.0,113720.0,0.3655123]
[1754143302972,3.961247,113730.0,113720.0,0.40471332]
[1754143306445,0.85376647,113740.0,113720.0,0.40471332]
[1754143306669,3.748425,113730.0,113720.0,0.04419102]
[1754143306895,3.748425,113730.0,113720.0,0.36976332]
[1754143307113,3.748425,113730.0,113720.0,0.37076332]
[1754143307348,3.748425,113730.0,113720.0,0.40571332]
[1754143309399,0.5,113730.0,113720.0,0.40571332]
[1754143316726,0.5,113730.0,113720.0,0.74873464]
[1754143316959,0.5,113730.0,113720.0,0.42316234]
[1754143320809,0.5,113730.0,113720.0,0.09759004]
[1754143321067,0.5,113730.0,113720.0,0.42316234]
[1754143321824,0.5,113730.0,113720.0,0.69196234]
[1754143326880,0.5,113730.0,113720.0,1.01729436]
[1754143334834,0.5,113730.0,113720.0,0.36639004]
[1754143335090,0.5,113730.0,113720.0,0.94115334]
[1754143335339,0.50657,113730.0,113720.0,0.59825216]
[1754143335591,0.50657,113730.0,113720.0,0.92370432]
[1754143336531,0.5,113730.0,113720.0,0.92370432]
[1754143337884,0.5,113730.0,113720.0,0.96097432]
[1754143338563,0.5,113730.0,113720.0,1.04517421]
[1754143339028,0.5,113730.0,113720.0,0.96097432]
[1754143339488,0.5,113730.0,113720.0,0.69217432]
[1754143341460,0.5,113730.0,113720.0,0.69428432]
[1754143345053,0.5,113730.0,113720.0,0.04338]
[1754143345302,0.5,113730.0,113720.0,0.69428432]
[1754143346825,0.5,113730.0,113720.0,0.77848421]
[1754143350745,0.5,113730.0,113720.0,0.69428432]
[1754143352827,0.5,113730.0,113720.0,1.0371855]
[1754143354569,0.5,113730.0,113720.0,0.71173334]
[1754143357144,0.5,113730.0,113720.0,0.98053334]
[1754143359034,0.5,113730.0,113720.0,0.32962902]
[1754143359292,0.5,113730.0,113720.0,1.01614574]
[1754143361903,0.5,113730.0,113720.0,1.3415979]
[1754143371307,0.5,113730.0,113720.0,1.3680439]
[1754143374953,0.5,113730.0,113720.0,0.39168742]
[1754143375197,0.5,113730.0,113720.0,1.3680439]
[1754143375421,0.28285955,113730.0,113720.0,1.3680439]
[1754143375651,0.35376647,113740.0,113730.0,0.01744902]
[1754143375877,0.57090647,113740.0,113730.0,0.75456323]
[1754143376078,0.57090647,113740.0,113730.0,0.78889323]
[1754143376941,0.57090647,113740.0,113730.0,0.78989323]
[1754143377568,0.85376647,113740.0,113730.0,0.78989323]
[1754143378228,0.85376647,113740.0,113730.0,0.13898891]
[1754143378467,0.85376647,113740.0,113730.0,0.38024118]
[1754143380804,0.85376647,113740.0,113730.0,0.70569334]
[1754143382271,0.85376647,113740.0,113730.0,0.38024118]
[1754143383942,0.85376647,113740.0,113730.0,0.37823118]
[1754143384256,0.85376647,113740.0,113730.0,0.05277902]
[1754143384540,0.85376647,113740.0,113730.0,0.37823118]
[1754143385707,4.60219147,113740.0,113730.0,0.37823118]
[1754143385964,4.10219147,113740.0,113730.0,0.001]
[1754143386276,4.10642147,113740.0,113730.0,0.32645216]
[1754143388441,4.10219147,113740.0,113730.0,0.32645216]
[1754143388895,4.10642147,113740.0,113730.0,0.32645216]
[1754143390270,4.10219147,113740.0,113730.0,0.32645216]
[1754143391176,4.10219147,113740.0,113730.0,0.35756216]
[1754143391387,4.10219147,113740.0,113730.0,0.03211]
[1754143391607,4.10219147,113740.0,113730.0,0.35756216]
[1754143392940,4.10219147,113740.0,113730.0,0.03211]
[1754143393137,4.10219147,113740.0,113730.0,0.35756216]
[1754143393867,4.10219147,113740.0,113730.0,0.32645216]
[1754143394055,4.10642147,113740.0,113730.0,0.32645216]
[1754143396026,4.10219147,113740.0,113730.0,0.32645216]
[1754143397471,4.10219147,113740.0,113730.0,0.001]
[1754143397689,4.092655,113740.0,113730.0,0.32645216]
[1754143399095,4.088425,113740.0,113730.0,0.32645216]
[1754143399534,4.10219239,113740.0,113730.0,0.32645216]
[1754143401981,4.10219239,113740.0,113730.0,0.001]
[1754143402185,4.10219239,113740.0,113730.0,0.32645216]
[1754143402413,4.10219239,113740.0,113730.0,0.03211]
[1754143402622,4.10219239,113740.0,113730.0,0.35756216]
[1754143403250,4.10219239,113740.0,113730.0,0.03211]
[1754143403451,4.10219239,113740.0,113730.0,0.35756216]
[1754143404104,4.10219239,113740.0,113730.0,0.36078216]
[1754143408702,4.10219239,113740.0,113730.0,0.03533]
[1754143408909,4.10219239,113740.0,113730.0,0.36078216]
[1754143410665,4.10219239,113740.0,113730.0,0.03533]
[1754143410893,4.10219239,113740.0,113730.0,0.36078216]
[1754143412487,4.10219239,113740.0,113730.0,0.03533]
[1754143412719,4.10219239,113740.0,113730.0,0.36078216]
[1754143415309,4.088425,113740.0,113730.0,0.36078216]
[1754143415786,4.088425,113740.0,113730.0,0.36280216]
[1754143417357,4.088425,113740.0,113730.0,0.03735]
[1754143417581,4.088425,113740.0,113730.0,0.36280216]
[1754143418701,4.10219241,113740.0,113730.0,0.36280216]
[1754143420853,4.10219241,113740.0,113730.0,0.03735]
[1754143421087,4.10219241,113740.0,113730.0,0.36280216]
[1754143428087,4.088425,113740.0,113730.0,0.36280216]
[1754143430154,4.088425,113740.0,113730.0,0.03735]
[1754143430402,4.088425,113740.0,113730.0,0.36280216]
[1754143431083,4.10219234,113740.0,113730.0,0.36280216]
[1754143438720,0.35376734,113740.0,113730.0,0.36280216]
[1754143438922,4.10219234,113740.0,113730.0,0.36280216]
[1754143443102,4.10219234,113740.0,113730.0,0.03735]
[1754143443328,4.10219234,113740.0,113730.0,0.36280216]
[1754143449677,4.088425,113740.0,113730.0,0.36280216]
[1754143450354,0.34,113740.0,113730.0,0.36280216]
[1754143450585,4.088425,113740.0,113730.0,0.36280216]
[1754143452330,4.10219241,113740.0,113730.0,0.36280216]
[1754143457405,4.10219241,113740.0,113730.0,0.03735]
[1754143457946,4.10219241,113740.0,113730.0,0.36280216]
[1754143459064,4.43117457,113740.0,113730.0,0.001]
[1754143459302,4.75662673,113740.0,113730.0,0.001]
[1754143459540,4.47208298,113740.0,113730.0,0.001]
[1754143460013,4.47208298,113740.0,113710.0,0.37652912]
[1754143460014,3.748425,113730.0,113710.0,0.37652912]
[1754143460477,3.748425,113720.0,113710.0,0.3590801]
[1754143460914,3.748425,113720.0,113710.0,0.3612401]
[1754143461155,3.76219411,113720.0,113710.0,0.3612401]
[1754143463183,3.76219411,113720.0,113710.0,0.3622401]
[1754143463393,3.76219411,113720.0,113710.0,0.3632401]
[1754143463605,3.748425,113730.0,113710.0,0.3632401]
[1754143463834,4.088425,113730.0,113720.0,0.32545216]
[1754143464270,4.10219371,113730.0,113720.0,0.32545216]
[1754143464702,3.748425,113720.0,113710.0,0.3590801]
[1754143464924,3.748425,113720.0,113710.0,0.3620901]
[1754143466301,3.748425,113720.0,113710.0,0.43084433]
[1754143466555,3.748425,113720.0,113710.0,0.3620901]
[1754143467012,3.74836345,113720.0,113710.0,0.3610901]
[1754143467228,3.74836345,113720.0,113710.0,0.3620901]
[1754143468012,0.35376871,113730.0,113710.0,0.69054226]
[1754143468252,0.35376871,113730.0,113720.0,0.65090432]
[1754143468506,0.35376871,113730.0,113720.0,0.75226055]
[1754143469012,0.35376871,113730.0,113720.0,0.68656432]
[1754143471676,0.35376871,113730.0,113720.0,0.68756432]
[1754143474850,0.35376871,113730.0,113720.0,0.03666]
[1754143475072,0.35376871,113730.0,113720.0,0.68756432]
[1754143475525,0.35376871,113730.0,113720.0,0.03666]
[1754143475760,0.35376871,113730.0,113720.0,0.68756432]
[1754143477437,0.35376871,113730.0,113720.0,0.36211216]
[1754143477664,4.10213271,113730.0,113720.0,0.36211216]
[1754143478628,3.76213271,113730.0,113720.0,0.36211216]
[1754143479042,3.76213271,113730.0,113720.0,0.39832817]
[1754143479302,3.76213271,113730.0,113720.0,0.72378033]
[1754143479531,3.76213271,113730.0,113720.0,0.68756432]
[1754143480270,3.76213271,113730.0,113720.0,0.36211216]
[1754143485591,4.10213271,113730.0,113720.0,0.36211216]
[1754143485820,4.088364,113730.0,113720.0,0.68756432]
[1754143486052,0.34,113730.0,113720.0,0.75632555]
[1754143486279,3.748364,113730.0,113720.0,0.77377457]
[1754143486945,0.5,113740.0,113720.0,1.09922673]
[1754143487184,0.34,113740.0,113730.0,0.35910216]
[1754143487422,0.34,113740.0,113730.0,0.36111216]
[1754143488097,0.34,113740.0,113730.0,0.45593864]
[1754143488342,0.34,113740.0,113730.0,0.7813908]
[1754143488581,0.34,113740.0,113730.0,0.70401334]
[1754143488828,0.35376691,113740.0,113730.0,0.70401334]
[1754143489058,0.35376691,113740.0,113730.0,0.73045834]
[1754143489505,0.35476691,113740.0,113730.0,0.73045834]
[1754143489958,0.35376691,113740.0,113730.0,0.73045834]
[1754143490167,0.35376691,113740.0,113730.0,0.76929683]
[1754143490401,0.35476691,113740.0,113730.0,0.76929683]
[1754143490844,0.01476691,113740.0,113730.0,0.76929683]
[1754143492768,0.01376691,113740.0,113730.0,0.76929683]
[1754143493462,0.5,113750.0,113730.0,0.76929683]
[1754143493702,0.84,113750.0,113740.0,0.68455432]
[1754143493919,0.84,113750.0,113740.0,0.763594]
[1754143495534,0.841,113750.0,113740.0,0.763594]
[1754143495984,0.84,113750.0,113740.0,0.763594]
[1754143496481,0.8547657,113750.0,113740.0,0.763594]
[1754143496948,0.8547657,113750.0,113740.0,0.764594]
[1754143497168,0.3547657,113750.0,113740.0,0.764594]
[1754143499393,0.3547657,113750.0,113740.0,0.78204302]
[1754143503580,0.341,113750.0,113740.0,0.78204302]
[1754143504370,0.001,113750.0,113740.0,1.10749518]
[1754143504602,0.001,113750.0,113740.0,0.80848402]
[1754143507286,0.001,113750.0,113740.0,1.13393618]
[1754143507866,0.01476459,113750.0,113740.0,0.80848402]
[1754143508094,0.01376459,113750.0,113740.0,0.80848402]
[1754143510756,0.01376459,113750.0,113740.0,0.80948402]
[1754143513595,0.84,113760.0,113750.0,0.01744902]
[1754143513804,0.34,113760.0,113750.0,0.34290118]
[1754143514026,0.34,113760.0,113750.0,0.39274531]
[1754143514870,0.34004792,113760.0,113750.0,0.39274531]
[1754143515082,0.34004792,113760.0,113750.0,0.39488531]
[1754143516132,0.34004792,113760.0,113750.0,0.06943315]
[1754143516342,0.34004792,113760.0,113750.0,0.37745118]
[1754143516868,0.3538126,113760.0,113750.0,0.37745118]
[1754143518120,0.3548126,113760.0,113750.0,0.37745118]
[1754143521683,0.3548126,113760.0,113750.0,0.70290334]
[1754143522421,0.3548126,113760.0,113750.0,0.37745118]
[1754143525530,0.3548126,113760.0,113750.0,0.43606897]
[1754143525737,0.3548126,113760.0,113750.0,0.76152113]
[1754143526073,0.3548126,113760.0,113750.0,0.43606897]
[1754143527133,0.3548126,113760.0,113750.0,0.76152113]
[1754143529787,0.3548126,113760.0,113750.0,0.43606897]
[1754143530452,0.0148126,113760.0,113750.0,0.76152113]
[1754143530896,0.0148126,113760.0,113750.0,0.43606897]
[1754143531173,0.0148126,113760.0,113750.0,0.76152113]
[1754143531396,0.0148126,113760.0,113750.0,0.43606897]
[1754143531871,0.0148126,113760.0,113750.0,0.11061681]
[1754143532083,0.0148126,113760.0,113750.0,0.37745118]
[1754143532995,0.0148126,113760.0,113750.0,0.01744902]
[1754143533236,3.7653066,113760.0,113750.0,0.01744902]
[1754143533465,3.748364,113750.0,113740.0,0.07758002]
[1754143533692,3.748364,113750.0,113740.0,0.70980134]
[1754143533913,3.748364,113750.0,113740.0,0.71187134]
[1754143534138,3.748364,113750.0,113740.0,0.06096702]
[1754143534362,3.748364,113750.0,113740.0,0.71187134]
[1754143534849,3.748364,113750.0,113740.0,0.71287134]
[1754143538646,0.8538126,113760.0,113750.0,0.01744902]
[1754143538863,0.8538126,113760.0,113750.0,0.41800322]
[1754143539081,0.8538126,113760.0,113750.0,0.45069322]
[1754143540839,0.8538126,113760.0,113750.0,0.37766118]
[1754143541089,0.8548126,113760.0,113750.0,0.37766118]
[1754143541303,0.5148126,113760.0,113750.0,0.70311334]
[1754143542592,0.5148126,113760.0,113750.0,0.72955134]
[1754143543717,0.0148126,113760.0,113750.0,0.40409918]
[1754143543937,0.00104792,113760.0,113750.0,0.47793011]
[1754143545475,0.00104792,113760.0,113750.0,0.80338227]
[1754143546820,0.01481083,113760.0,113750.0,0.80338227]
[1754143547038,0.01481083,113760.0,113750.0,0.80290387]
[1754143548035,0.01381083,113760.0,113750.0,0.80290387]
[1754143549340,0.01381083,113760.0,113750.0,0.88710376]
[1754143549562,0.01381083,113760.0,113750.0,0.88810376]
[1754143550432,0.01381083,113760.0,113750.0,0.88710376]
[1754143550648,0.01381083,113760.0,113750.0,0.88810376]
[1754143551085,0.01381083,113760.0,113750.0,0.88710376]
[1754143551494,0.01381083,113760.0,113750.0,0.88910376]
[1754143552554,0.01381083,113760.0,113750.0,0.89210376]
[1754143553416,0.01381083,113760.0,113750.0,0.88910376]
[1754143553630,0.01381083,113760.0,113750.0,0.89310376]
[1754143558112,0.01381083,113760.0,113750.0,1.16190376]
[1754143561531,0.01381083,113760.0,113750.0,0.51147784]
[1754143561542,0.01381083,113760.0,113750.0,1.16190376]
[1754143562654,0.01381083,113760.0,113750.0,0.51147784]
[1754143562940,0.01381083,113760.0,113750.0,0.8366908]
[1754143563729,0.01381083,113760.0,113750.0,1.16190376]
[1754143566021,0.01381083,113760.0,113750.0,0.51147784]
[1754143566022,0.01381083,113760.0,113750.0,0.8366908]
[1754143566275,0.01381083,113760.0,113750.0,1.16190376]
[1754143567045,0.01381083,113760.0,113750.0,1.16193408]
[1754143572031,0.3303226,113770.0,113750.0,1.16193408]
[1754143572247,0.03637435,113790.0,113770.0,0.01744902]
[1754143572446,0.03642229,113790.0,113780.0,0.32522812]
[1754143572881,0.05018331,113790.0,113770.0,0.11067455]
[1754143573337,0.05018331,113790.0,113780.0,0.32522812]
[1754143573870,0.05018331,113790.0,113770.0,0.11067455]
[1754143574093,0.39018331,113790.0,113780.0,0.32522812]
[1754143574785,0.39018331,113790.0,113780.0,0.36881839]
[1754143575899,0.39118331,113790.0,113780.0,0.36881839]
[1754143576326,0.39018331,113790.0,113780.0,0.36881839]
[1754143576532,0.39118331,113790.0,113780.0,0.36881839]
[1754143577644,0.39118331,113790.0,113780.0,0.32522812]
[1754143578310,0.39118331,113790.0,113770.0,0.14054455]
[1754143578532,0.39118331,113790.0,113780.0,0.32522812]
[1754143579395,0.39018331,113790.0,113770.0,0.14350455]
[1754143579617,4.07462212,113780.0,113770.0,0.04388402]
[1754143579825,3.749394,113780.0,113770.0,0.04388402]
[1754143580284,3.749394,113780.0,113770.0,0.36911214]
[1754143580502,3.749394,113780.0,113770.0,0.04388402]
[1754143581155,3.749394,113780.0,113770.0,0.36911214]
[1754143581835,3.749394,113780.0,113770.0,0.63791214]
[1754143582056,3.749394,113780.0,113770.0,0.61247714]
[1754143583331,3.749394,113780.0,113770.0,0.28724902]
[1754143583579,3.749394,113780.0,113770.0,0.61247714]
[1754143583802,3.749394,113780.0,113770.0,0.28724902]
[1754143583987,3.749394,113780.0,113770.0,0.61247714]
[1754143584965,4.07462212,113780.0,113770.0,0.2698]
[1754143586074,4.41462212,113780.0,113770.0,0.001]
[1754143586522,0.66625812,113780.0,113770.0,0.001]
[1754143586722,4.41462212,113780.0,113770.0,0.001]
[1754143587174,4.4145773,113780.0,113770.0,0.001]
[1754143587391,4.08934918,113780.0,113770.0,0.001]
[1754143587833,4.4145773,113780.0,113770.0,0.001]
[1754143588267,4.4155773,113780.0,113770.0,0.001]
[1754143588712,4.4155773,113780.0,113760.0,0.35589812]
[1754143588937,3.748364,113770.0,113760.0,0.35885812]
[1754143590286,0.68097584,113780.0,113760.0,0.35985812]
[1754143590513,3.545461,113770.0,113760.0,0.35985812]
[1754143591159,3.545461,113770.0,113760.0,0.35689812]
[1754143591386,3.545461,113770.0,113760.0,0.32622812]
[1754143591613,3.545461,113770.0,113760.0,0.001]
[1754143592268,3.545461,113770.0,113760.0,0.32622812]
[1754143592511,3.545461,113770.0,113760.0,0.35689812]
[1754143593239,3.545461,113770.0,113760.0,0.35885812]
[1754143594635,3.545461,113770.0,113760.0,0.35985812]
[1754143595664,3.545461,113770.0,113760.0,0.03463]
[1754143595929,3.545461,113770.0,113760.0,0.35985812]
[1754143597883,3.545461,113770.0,113760.0,0.03463]
[1754143598150,3.545461,113770.0,113760.0,0.35985812]
[1754143599059,3.545461,113770.0,113760.0,0.03463]
[1754143599309,3.545461,113770.0,113760.0,0.35985812]
[1754143599537,3.87216912,113770.0,113760.0,0.001]
[1754143600186,4.21216912,113770.0,113760.0,0.001]
[1754143601109,3.885461,113770.0,113760.0,0.001]
[1754143601332,4.21068912,113770.0,113760.0,0.001]
[1754143603691,4.21216912,113770.0,113760.0,0.001]
[1754143603962,4.2259326,113770.0,113760.0,0.001]
[1754143604549,4.2244526,113770.0,113760.0,0.001]
[1754143606646,3.89922448,113770.0,113760.0,0.001]
[1754143606863,4.21068912,113770.0,113760.0,0.001]
[1754143607607,4.22445236,113770.0,113760.0,0.03167]
[1754143609432,4.22445236,113770.0,113760.0,0.03463]
[1754143609651,0.67899136,113770.0,113760.0,0.03463]
[1754143609880,0.67899136,113770.0,113760.0,0.06765581]
[1754143609881,4.22445236,113770.0,113760.0,0.06765581]
[1754143610105,4.22445236,113770.0,113760.0,0.03167]
[1754143611464,3.89922424,113770.0,113760.0,0.03167]
[1754143611921,4.22445236,113770.0,113760.0,0.03167]
[1754143612148,3.89922424,113770.0,113760.0,0.03167]
[1754143612451,4.22445236,113770.0,113760.0,0.03167]
[1754143615303,4.22445236,113770.0,113760.0,0.03482]
[1754143615723,0.67899136,113770.0,113760.0,0.03482]
[1754143615927,4.22445236,113770.0,113760.0,0.03482]
[1754143616639,4.22445236,113770.0,113760.0,0.03167]
[1754143616850,4.22445236,113770.0,113760.0,0.001]
[1754143617064,4.22445236,113770.0,113760.0,0.03073]
[1754143617488,4.22445236,113770.0,113760.0,0.03388]
[1754143619754,0.67899136,113770.0,113760.0,0.03388]
[1754143620009,4.22445236,113770.0,113760.0,0.03388]
[1754143620887,3.89922424,113770.0,113760.0,0.03388]
[1754143621102,4.22445236,113770.0,113760.0,0.03587]
[1754143621588,3.89922424,113770.0,113760.0,0.36109812]
[1754143621840,3.89922424,113770.0,113760.0,0.68632624]
[1754143622075,3.89922424,113770.0,113760.0,0.03587]
[1754143622308,3.89922424,113770.0,113760.0,0.68632624]
[1754143622771,0.35376324,113770.0,113760.0,0.68632624]
[1754143622992,0.35376324,113770.0,113760.0,0.03587]
[1754143623221,0.35376324,113770.0,113760.0,0.68632624]
[1754143623732,0.34,113770.0,113760.0,0.68632624]
[1754143624297,0.34,113770.0,113760.0,0.74703466]
[1754143625334,0.34,113770.0,113760.0,0.76448368]
[1754143626032,4.045461,113780.0,113770.0,0.01744902]
[1754143626262,3.545461,113780.0,113770.0,0.61346714]
[1754143626491,3.545461,113780.0,113770.0,0.64634714]
[1754143626722,3.545461,113780.0,113770.0,0.73054703]
[1754143626723,3.8992229,113780.0,113770.0,0.73054703]
[1754143626961,3.8992229,113780.0,113770.0,0.75698303]
[1754143628369,0.3547619,113780.0,113770.0,1.08221115]
[1754143629257,0.3537619,113780.0,113770.0,0.75698303]
[1754143629491,0.3537619,113780.0,113770.0,0.75798303]
[1754143629731,0.0137619,113780.0,113770.0,0.43275491]
[1754143629949,0.0137619,113780.0,113770.0,0.67378314]
[1754143630176,0.0137619,113780.0,113770.0,0.67678314]
[1754143633930,0.53539229,113790.0,113770.0,0.67678314]
[1754143634165,0.87539229,113790.0,113780.0,0.34267714]
[1754143634377,0.87539229,113790.0,113780.0,0.37754714]
[1754143634551,0.87539229,113790.0,113780.0,0.44522545]
[1754143634754,0.87539229,113790.0,113780.0,0.11999733]
[1754143635188,4.42085329,113790.0,113780.0,0.11999733]
[1754143636160,3.92085329,113790.0,113780.0,0.11999733]
[1754143636986,3.92085329,113790.0,113780.0,0.12099733]
[1754143637187,3.92085329,113790.0,113780.0,0.44622545]
[1754143637817,3.9346142,113790.0,113780.0,0.44622545]
[1754143638694,3.9346142,113790.0,113780.0,0.12099733]
[1754143638905,3.9346142,113790.0,113780.0,0.44622545]
[1754143639990,3.9346142,113790.0,113780.0,0.12099733]
[1754143640192,3.9346142,113790.0,113780.0,0.44622545]
[1754143640349,0.3891532,113790.0,113780.0,0.44622545]
[1754143640552,3.9346142,113790.0,113780.0,0.44622545]
[1754143643835,3.92085329,113790.0,113780.0,0.44622545]
[1754143645622,3.92085329,113790.0,113780.0,0.12099733]
[1754143646021,3.92085329,113790.0,113780.0,0.05331902]
[1754143646482,3.92085329,113790.0,113780.0,0.37854714]
[1754143646647,3.93461426,113790.0,113780.0,0.37854714]
[1754143647242,3.93461426,113790.0,113780.0,0.05331902]
[1754143647454,3.93461426,113790.0,113780.0,0.37854714]
[1754143649323,3.93461426,113790.0,113780.0,0.44592545]
[1754143653279,0.38915326,113790.0,113780.0,0.44592545]
[1754143653506,3.93461426,113790.0,113780.0,0.44592545]
[1754143654658,3.92085329,113790.0,113780.0,0.44592545]
[1754143654877,3.92085329,113790.0,113780.0,0.12069733]
[1754143655301,3.92085329,113790.0,113780.0,0.44592545]
[1754143656190,3.92085329,113790.0,113780.0,0.12069733]
[1754143657616,3.93461435,113790.0,113780.0,0.12069733]
[1754143658775,3.93461435,113790.0,113780.0,0.44592545]
[1754143659199,4.25984247,113790.0,113780.0,0.12069733]
[1754143662236,3.93461435,113790.0,113780.0,0.12069733]
[1754143662458,3.93461435,113790.0,113780.0,0.44592545]
[1754143665814,3.55922206,113790.0,113780.0,0.44592545]
[1754143666272,3.545461,113790.0,113780.0,0.44592545]
[1754143666495,3.55858826,113790.0,113780.0,0.44592545]
[1754143666966,0.01312726,113790.0,113780.0,0.44592545]
[1754143667179,3.55858826,113790.0,113780.0,0.44592545]
[1754143667394,3.545461,113790.0,113780.0,0.44592545]
[1754143669175,3.89922211,113790.0,113780.0,0.44592545]
[1754143669817,3.89922211,113790.0,113780.0,0.12069733]
[1754143670030,3.89922211,113790.0,113780.0,0.44592545]
[1754143670676,3.91240539,113790.0,113780.0,0.44592545]
[1754143673482,3.91240539,113790.0,113780.0,0.12069733]
[1754143673701,3.91240539,113790.0,113780.0,0.44592545]
[1754143673920,3.89864428,113790.0,113780.0,0.44592545]
[1754143674351,3.89864428,113790.0,113780.0,0.12069733]
[1754143674566,3.89864428,113790.0,113780.0,0.44592545]
[1754143674779,3.89864428,113790.0,113780.0,0.12069733]
[1754143674996,3.89864428,113790.0,113780.0,0.37854714]
[1754143676778,0.35318328,113790.0,113780.0,0.37854714]
[1754143676997,3.89864428,113790.0,113780.0,0.37854714]
[1754143681380,3.89864428,113790.0,113780.0,0.05331902]
[1754143681604,3.89864428,113790.0,113780.0,0.37854714]
[1754143682277,3.89864428,113790.0,113780.0,0.44328185]
[1754143682751,3.89864428,113790.0,113780.0,0.11805373]
[1754143682965,3.89864428,113790.0,113780.0,0.37854714]
[1754143683657,3.89864428,113790.0,113780.0,0.05331902]
[1754143683879,3.89864428,113790.0,113780.0,0.37854714]
[1754143684099,3.89864428,113790.0,113780.0,0.05331902]
[1754143684319,3.89864428,113790.0,113780.0,0.37854714]
[1754143684549,3.89864428,113790.0,113780.0,0.05331902]
[1754143685230,3.89864428,113790.0,113780.0,0.37854714]
[1754143685693,3.89864428,113790.0,113780.0,0.37655714]
[1754143686613,3.89864428,113790.0,113780.0,0.05132902]
[1754143687047,3.89864428,113790.0,113780.0,0.37655714]
[1754143689087,3.91240524,113790.0,113780.0,0.37655714]
[1754143689305,0.36694424,113790.0,113780.0,0.37655714]
[1754143689525,3.91240524,113790.0,113780.0,0.37655714]
[1754143690833,3.91240524,113790.0,113780.0,0.05132902]
[1754143691054,3.91240524,113790.0,113780.0,0.37655714]
[1754143694162,3.89864428,113790.0,113780.0,0.37655714]
[1754143695295,3.89864428,113790.0,113780.0,0.05346902]
[1754143695540,3.89864428,113790.0,113780.0,0.37869714]
[1754143697155,3.89864428,113790.0,113780.0,0.05346902]
[1754143697375,3.89864428,113790.0,113780.0,0.37869714]
[1754143698059,3.9124054,113790.0,113780.0,0.37869714]
[1754143703594,3.89864428,113790.0,113780.0,0.37869714]
[1754143704532,0.35318328,113790.0,113780.0,0.37869714]
[1754143704758,3.89864428,113790.0,113780.0,0.04817902]
[1754143704991,4.2245524,113790.0,113780.0,0.001]
[1754143707839,4.23763368,113790.0,113780.0,0.001]
[1754143708267,4.23831368,113790.0,113780.0,0.001]
[1754143709387,4.23763368,113790.0,113780.0,0.001]
[1754143710088,4.23831368,113790.0,113780.0,0.001]
[1754143710521,3.91240556,113790.0,113780.0,0.001]
[1754143710742,4.23763368,113790.0,113780.0,0.001]
[1754143712456,3.91240556,113790.0,113780.0,0.001]
[1754143713164,4.23763368,113790.0,113780.0,0.03009]
[1754143713423,0.69217268,113790.0,113780.0,0.03009]
[1754143713685,4.23763368,113790.0,113780.0,0.03009]
[1754143714600,4.23763368,113790.0,113780.0,0.03322]
[1754143715429,0.69217268,113790.0,113780.0,0.03322]
[1754143715671,4.23763368,113790.0,113780.0,0.03322]
[1754143717740,3.91240556,113790.0,113780.0,0.03322]
[1754143717944,4.23763368,113790.0,113780.0,0.03322]
[1754143718768,3.91240556,113790.0,113780.0,0.03322]
[1754143718970,3.91240556,113790.0,113780.0,0.35844812]
[1754143719502,0.36694456,113790.0,113780.0,0.35844812]
[1754143719709,3.91240556,113790.0,113780.0,0.35844812]
[1754143720278,3.91240556,113790.0,113780.0,0.36052812]
[1754143724044,0.36694456,113790.0,113780.0,0.36052812]
[1754143724457,3.91240556,113790.0,113780.0,0.36052812]
[1754143725779,0.36694456,113790.0,113780.0,0.36052812]
[1754143725980,3.91240556,113790.0,113780.0,0.36052812]
[1754143728816,3.94722189,113790.0,113780.0,0.36052812]
[1754143729053,3.91240556,113790.0,113780.0,0.36052812]
[1754143729282,4.23763368,113790.0,113780.0,0.0353]
[1754143729609,3.91240556,113790.0,113780.0,0.36052812]
[1754143733103,3.91240556,113790.0,113780.0,0.0353]
[1754143733310,3.94722189,113790.0,113780.0,0.0353]
[1754143733527,3.91240556,113790.0,113780.0,0.0353]
[1754143734501,4.23763368,113790.0,113780.0,0.0353]
[1754143735750,4.23763368,113790.0,113780.0,0.03322]
[1754143738129,0.69217268,113790.0,113780.0,0.03322]
[1754143738384,4.23763368,113790.0,113780.0,0.03322]
[1754143738916,4.57731568,113790.0,113780.0,0.001]
[1754143739122,4.27781409,113790.0,113780.0,0.001]
[1754143739397,3.95258597,113790.0,113780.0,0.001]
[1754143739648,4.27781409,113790.0,113780.0,0.001]
[1754143740127,4.27781177,113790.0,113780.0,0.001]
[1754143740821,3.95258365,113790.0,113780.0,0.001]
[1754143741052,4.25208524,113790.0,113780.0,0.001]
[1754143742324,0.70662424,113790.0,113780.0,0.001]
[1754143742572,4.25208524,113790.0,113780.0,0.001]
[1754143744827,4.25208148,113790.0,113780.0,0.001]
[1754143746517,4.2520744,113790.0,113780.0,0.001]
[1754143747130,4.2520744,113790.0,113780.0,0.03176]
[1754143750400,4.2520744,113790.0,113780.0,0.03495]
[1754143750626,4.24588552,113790.0,113780.0,0.03495]
[1754143750814,4.25207332,113790.0,113780.0,0.03495]
[1754143752570,4.24588552,113790.0,113780.0,0.03495]
[1754143753727,4.25207312,113790.0,113780.0,0.001]
[1754143753968,3.95257153,113790.0,113780.0,0.001]
[1754143754228,4.27779965,113790.0,113780.0,0.001]
[1754143754452,4.30423765,113790.0,113780.0,0.001]
[1754143755104,4.30423765,113790.0,113780.0,0.03176]
[1754143755345,3.97900953,113790.0,113780.0,0.03176]
[1754143755563,4.27779965,113790.0,113780.0,0.03176]
[1754143755793,4.30423865,113790.0,113780.0,0.03176]
[1754143756142,4.27779965,113790.0,113780.0,0.03176]
[1754143756365,4.30423765,113790.0,113780.0,0.03176]
[1754143756582,4.29047637,113790.0,113780.0,0.03176]